fUST/lending_fUST_20250428
["ID","MTS","AMOUNT","RATE_DAILY","PERIOD"]
[359213103,1745820651798,-400.0,0.00033424,2]
[359213104,1745820651810,-400.0,0.00033424,2]
[359213105,1745820651819,-400.0,0.00033424,2]
[359213106,1745820651828,-400.0,0.00033424,2]
[359213107,1745820651839,-400.0,0.00033424,2]
[359213108,1745820651850,-200.42436518,0.00033424,2]
[359213109,1745820651859,-400.0,0.00033424,2]
[359213110,1745820651868,-400.0,0.00033424,2]
[359213111,1745820651879,-217.74158765,0.00033424,2]
[359213112,1745820651889,-400.0,0.00033424,2]
[359213113,1745820651898,-400.0,0.00033424,2]
[359213114,1745820651908,-466.67,0.00033424,2]
[359213115,1745820651917,-304.63717899,0.00033424,2]
[359213116,1745820651927,-400.0,0.00033424,2]
[359213117,1745820651936,-400.0,0.00033424,2]
[359213118,1745820651945,-400.0,0.00033424,2]
[359213119,1745820651955,-400.0,0.00033424,2]
[359213120,1745820651967,-400.0,0.00033424,2]
[359213121,1745820651979,-400.0,0.00033424,2]
[359213122,1745820651989,-400.0,0.00033424,2]
[359213123,1745820651998,-200.0,0.00033424,2]
[359213124,1745820652007,-400.0,0.00033424,2]
[359213125,1745820652017,-170.25850877,0.00033424,2]
[359213126,1745820652026,-400.0,0.00033424,2]
[359213127,1745820652036,-400.0,0.00033424,2]
[359213128,1745820652045,-400.0,0.00033424,2]
[359213129,1745820652055,-208.50379617,0.00033424,2]
[359213130,1745820652065,-400.0,0.00033424,2]
[359213131,1745820652075,-226.73867108,0.00033424,2]
[359213132,1745820652085,-222.11019759,0.00033424,2]
[359213133,1745820652095,-400.0,0.00033424,2]
[359213134,1745820652104,-205.56423455,0.00033424,2]
[359213135,1745820652114,-400.0,0.00033424,2]
[359213136,1745820652124,-400.0,0.00033424,2]
[359213137,1745820652132,-309.21284683,0.00033424,2]
[359213138,1745820652142,-400.0,0.00033424,2]
[359213139,1745820652152,-504.69539374,0.00033424,2]
[359213140,1745820652161,-400.0,0.00033424,2]
[359213141,1745820652172,-400.0,0.00033424,2]
[359213142,1745820652183,-264.03870506,0.00033424,2]
[359213143,1745820652193,-400.0,0.00033424,2]
[359213144,1745820652204,-514.2433774,0.00033424,2]
[359213145,1745820652213,-400.0,0.00033424,2]
[359213146,1745820652223,-400.0,0.00033424,2]
[359213147,1745820652233,-400.0,0.00033424,2]
[359213148,1745820652243,-400.0,0.00033424,2]
[359213149,1745820652253,-291.61622785,0.00033424,2]
[359213150,1745820652262,-200.0,0.00033424,2]
[359213151,1745820652272,-200.0,0.00033424,2]
[359213152,1745820652281,-401.74891531,0.00033424,2]
[359213153,1745820652291,-200.0,0.00033424,2]
[359213154,1745820652301,-355.82,0.00033424,2]
[359213155,1745820652311,-400.0,0.00033424,2]
[359213156,1745820652320,-200.0,0.00033424,2]
[359213157,1745820652330,-202.93871402,0.00033424,2]
[359213158,1745820652339,-400.0,0.00033424,2]
[359213159,1745820652349,-304.17,0.00033424,2]
[359213160,1745820652358,-400.0,0.00033424,2]
[359213161,1745820652367,-200.0,0.00033424,2]
[359213162,1745820652377,-400.0,0.00033424,2]
[359213163,1745820652387,-200.0,0.00033424,2]
[359213164,1745820652396,-400.0,0.00033424,2]
[359213165,1745820652405,-413.60993741,0.00033424,2]
[359213166,1745820652414,-400.0,0.00033424,2]
[359213167,1745820652423,-400.0,0.00033424,2]
[359213168,1745820652433,-200.0,0.00033424,2]
[359213169,1745820652443,-400.0,0.00033424,2]
[359213170,1745820652452,-400.0,0.00033424,2]
[359213171,1745820652461,-400.0,0.00033424,2]
[359213172,1745820652470,-217.4264589,0.00033424,2]
[359213173,1745820652479,-400.0,0.00033424,2]
[359213174,1745820652490,-157.11205118,0.00033424,2]
[359213175,1745820652501,-400.0,0.00033424,2]
[359213176,1745820652513,-507.45,0.00033424,2]
[359213177,1745820652522,-300.0,0.00033424,2]
[359213178,1745820652531,-400.0,0.00033424,2]
[359213179,1745820652540,-309.77573809,0.00033424,2]
[359213180,1745820652550,-340.78774478,0.00033424,2]
[359213181,1745820652560,-1654.21,0.00033424,2]
[359213182,1745820652570,-400.0,0.00033424,2]
[359213183,1745820652579,-400.0,0.00033424,2]
[359213184,1745820652588,-320.95139954,0.00033424,2]
[359213185,1745820652598,-206.04472952,0.00033424,2]
[359213186,1745820652608,-311.96060959,0.00033424,2]
[359213187,1745820652617,-429.66,0.00033424,2]
[359213188,1745820652627,-400.0,0.00033424,2]
[359213189,1745820652636,-305.72110012,0.00033424,2]
[359213190,1745820652645,-400.0,0.00033424,2]
[359213191,1745820652655,-303.51615354,0.00033424,2]
[359213192,1745820652664,-173.35281167,0.00033424,2]
[359213193,1745820652673,-205.28846099,0.00033424,2]
[359213194,1745820652683,-400.0,0.00033424,2]
[359213195,1745820652692,-200.0,0.00033424,2]
[359213196,1745820652702,-364.09472927,0.00033424,2]
[359213197,1745820652711,-400.0,0.00033424,2]
[359213198,1745820652720,-400.0,0.00033424,2]
[359213199,1745820652730,-155.28437308,0.00033424,2]
[359213200,1745820652740,-400.0,0.00033424,2]
[359213201,1745820652750,-411.29782468,0.00033424,2]
[359213202,1745820652759,-203.55485671,0.00033424,2]
[359213203,1745820652769,-400.0,0.00033424,2]
[359213204,1745820652778,-400.0,0.00033424,2]
[359213205,1745820652788,-400.0,0.00033424,2]
[359213206,1745820652798,-400.0,0.00033424,2]
[359213207,1745820652811,-210.6295387,0.00033424,2]
[359213208,1745820652821,-300.0,0.00033424,2]
[359213209,1745820652832,-266.4852813,0.00033424,2]
[359213210,1745820652842,-202.94883964,0.00033424,2]
[359213211,1745820652853,-500.0,0.00033424,2]
[359213212,1745820652863,-203.97691878,0.00033424,2]
[359213213,1745820652874,-206.5273712,0.00033424,2]
[359213214,1745820652885,-400.0,0.00033424,2]
[359213215,1745820652895,-222.87801103,0.00033424,2]
[359213216,1745820652905,-400.0,0.00033424,2]
[359213217,1745820652915,-400.0,0.00033424,2]
[359213218,1745820652925,-207.80649314,0.00033424,2]
[359213219,1745820652934,-400.0,0.00033424,2]
[359213220,1745820652944,-400.0,0.00033424,2]
[359213221,1745820652953,-400.0,0.00033424,2]
[359213222,1745820652964,-400.0,0.00033424,2]
[359213223,1745820652973,-400.0,0.00033424,2]
[359213224,1745820652983,-208.79140261,0.00033424,2]
[359213225,1745820652992,-400.0,0.00033424,2]
[359213226,1745820653002,-207.3431188,0.00033424,2]
[359213227,1745820653011,-206.61087671,0.00033424,2]
[359213228,1745820653021,-400.0,0.00033424,2]
[359213229,1745820653031,-400.0,0.00033424,2]
[359213230,1745820653041,-400.0,0.00033424,2]
[359213231,1745820653052,-500.0,0.00033424,2]
[359213232,1745820653061,-405.63242251,0.00033424,2]
[359213233,1745820653071,-400.0,0.00033424,2]
[359213234,1745820653080,-500.0,0.00033424,2]
[359213235,1745820653090,-400.0,0.00033424,2]
[359213236,1745820653099,-400.0,0.00033424,2]
[359213237,1745820653109,-400.0,0.00033424,2]
[359213238,1745820653118,-400.0,0.00033424,2]
[359213239,1745820653127,-400.0,0.00033424,2]
[359213240,1745820653136,-500.0,0.00033424,2]
[359213241,1745820653146,-500.0,0.00033424,2]
[359213242,1745820653155,-400.0,0.00033424,2]
[359213243,1745820653165,-400.0,0.00033424,2]
[359213244,1745820653175,-400.0,0.00033424,2]
[359213245,1745820653184,-201.92854955,0.00033424,2]
[359213246,1745820653193,-400.0,0.00033424,2]
[359213247,1745820653203,-400.0,0.00033424,2]
[359213248,1745820653212,-200.0,0.00033424,2]
[359213249,1745820653224,-400.0,0.00033424,2]
[359213250,1745820653234,-221.3031868,0.00033424,2]
[359213251,1745820653244,-400.0,0.00033424,2]
[359213252,1745820653254,-400.0,0.00033424,2]
[359213253,1745820653264,-400.0,0.00033424,2]
[359213254,1745820653275,-418.79539905,0.00033424,2]
[359213255,1745820653285,-383.73040803,0.00033424,2]
[359213256,1745820653296,-400.0,0.00033424,2]
[359213257,1745820653305,-437.26,0.00033424,2]
[359213258,1745820653316,-400.0,0.00033424,2]
[359213259,1745820653325,-208.46760218,0.00033424,2]
[359213260,1745820653335,-400.0,0.00033424,2]
[359213261,1745820653346,-400.0,0.00033424,2]
[359213262,1745820653355,-500.0,0.00033424,2]
[359213263,1745820653364,-400.0,0.00033424,2]
[359213264,1745820653373,-400.0,0.00033424,2]
[359213265,1745820653382,-400.0,0.00033424,2]
[359213266,1745820653391,-206.14828294,0.00033424,2]
[359213267,1745820653400,-400.0,0.00033424,2]
[359213268,1745820653410,-400.0,0.00033424,2]
[359213269,1745820653419,-203.08492011,0.00033424,2]
[359213270,1745820653428,-400.0,0.00033424,2]
[359213271,1745820653438,-400.0,0.00033424,2]
[359213272,1745820653447,-204.16022462,0.00033424,2]
[359213273,1745820653456,-804.83,0.00033424,2]
[359213274,1745820653466,-400.0,0.00033424,2]
[359213275,1745820653475,-168.23956088,0.00033424,2]
[359213276,1745820653485,-400.0,0.00033424,2]
[359213277,1745820653495,-713.88,0.00033424,2]
[359213278,1745820653503,-400.0,0.00033424,2]
[359213279,1745820653512,-400.0,0.00033424,2]
[359213280,1745820653522,-692.25,0.00033424,2]
[359213281,1745820653531,-400.0,0.00033424,2]
[359213282,1745820653540,-400.0,0.00033424,2]
[359213283,1745820653549,-400.0,0.00033424,2]
[359213284,1745820653559,-400.0,0.00033424,2]
[359213285,1745820653568,-400.0,0.00033424,2]
[359213286,1745820653578,-416.66,0.00033424,2]
[359213287,1745820653587,-167.40754338,0.00033424,2]
[359213288,1745820653596,-400.0,0.00033424,2]
[359213289,1745820653606,-400.0,0.00033424,2]
[359213290,1745820653615,-400.0,0.00033424,2]
[359213291,1745820653625,-203.7431876,0.00033424,2]
[359213292,1745820653635,-400.0,0.00033424,2]
[359213293,1745820653644,-400.0,0.00033424,2]
[359213294,1745820653653,-400.0,0.00033424,2]
[359213295,1745820653663,-400.0,0.00033424,2]
[359213296,1745820653672,-400.0,0.00033424,2]
[359213297,1745820653681,-400.0,0.00033424,2]
[359213298,1745820653691,-1328.7,0.00033424,2]
[359213299,1745820653700,-500.09076406,0.00033473,5]
[359213300,1745820653709,-300.8345408,0.00033507,30]
[359213301,1745820653719,-262.71423197,0.00033624,11]
[359213302,1745820653728,-400.0,0.00033698,2]
[359213303,1745820653737,-500.0,0.00033698,2]
[359213304,1745820653746,-414.55395743,0.00033698,2]
[359213305,1745820653756,-427.21287136,0.00033698,2]
[359213306,1745820653765,-408.81677708,0.00033698,2]
[359213307,1745820653774,-400.0,0.00033698,2]
[359213308,1745820653784,-310.87878445,0.00033698,2]
[359213309,1745820653793,-303.30315789,0.00033698,2]
[359213310,1745820653804,-433.09227156,0.00033698,2]
[359213311,1745820653814,-500.0,0.00033698,2]
[359213312,1745820653824,-400.0,0.00033698,2]
[359213313,1745820653833,-400.0,0.00033698,2]
[359213314,1745820653843,-314.98905387,0.00033698,2]
[359213315,1745820653939,-466.67,0.00033698,2]
[359213316,1745820653964,-510.356316,0.00033698,2]
[359213317,1745820653974,-416.81273375,0.00033698,2]
[359213318,1745820653983,-313.06555353,0.00033698,2]
[359213319,1745820653992,-400.0,0.00033698,2]
[359213320,1745820654002,-400.0,0.00033698,2]
[359213321,1745820654011,-400.0,0.00033698,2]
[359213322,1745820654021,-427.35771909,0.00033698,2]
[359213323,1745820654031,-400.0,0.00033698,2]
[359213324,1745820654040,-497.58,0.00033698,2]
[359213325,1745820654049,-336.03828968,0.00033698,2]
[359213326,1745820654058,-400.0,0.00033698,2]
[359213327,1745820654068,-400.0,0.00033698,2]
[359213328,1745820654078,-400.0,0.00033698,2]
[359213329,1745820654088,-242.05004193,0.00033698,2]
[359213330,1745820654097,-233.34487336,0.00033698,2]
[359213331,1745820654107,-400.0,0.00033698,2]
[359213332,1745820654116,-400.0,0.00033698,2]
[359213333,1745820654126,-400.0,0.00033698,2]
[359213334,1745820654135,-200.0,0.00033698,2]
[359213335,1745820654145,-497.59373305,0.00033698,2]
[359213336,1745820654154,-400.0,0.00033698,2]
[359213337,1745820654164,-335.70869967,0.00033698,2]
[359213338,1745820654173,-400.0,0.00033698,2]
[359213339,1745820654183,-400.0,0.00033698,2]
[359213340,1745820654192,-307.17404748,0.00033698,2]
[359213341,1745820654201,-400.0,0.00033698,2]
[359213342,1745820654210,-400.0,0.00033698,2]
[359213343,1745820654220,-400.0,0.00033698,2]
[359213344,1745820654229,-400.0,0.00033698,2]
[359213345,1745820654238,-400.0,0.00033698,2]
[359213346,1745820654248,-400.0,0.00033698,2]
[359213347,1745820654257,-400.0,0.00033698,2]
[359213348,1745820654266,-400.0,0.00033698,2]
[359213349,1745820654275,-507.45,0.00033698,2]
[359213350,1745820654284,-394.68,0.00033698,2]
[359213351,1745820654295,-1654.21,0.00033698,2]
[359213352,1745820654304,-400.0,0.00033698,2]
[359213353,1745820654313,-405.15509331,0.00033698,2]
[359213354,1745820654324,-404.36851456,0.00033698,2]
[359213355,1745820654333,-307.12417662,0.00033698,2]
[359213356,1745820654343,-508.98630651,0.00033698,2]
[359213357,1745820654352,-407.23221757,0.00033698,2]
[359213358,1745820654362,-200.0,0.00033698,2]
[359213359,1745820654375,-400.0,0.00033698,2]
[359213360,1745820654387,-514.59339533,0.00033698,2]
[359213361,1745820654398,-400.0,0.00033698,2]
[359213362,1745820654409,-408.28236072,0.00033698,2]
[359213363,1745820654419,-400.0,0.00033698,2]
[359213364,1745820654430,-400.0,0.00033698,2]
[359213365,1745820654441,-400.0,0.00033698,2]
[359213366,1745820654453,-307.18177401,0.00033698,2]
[359213367,1745820654464,-400.0,0.00033698,2]
[359213368,1745820654473,-400.0,0.00033698,2]
[359213369,1745820654485,-400.0,0.00033698,2]
[359213370,1745820654506,-200.0,0.00033698,2]
[359213371,1745820654517,-400.0,0.00033698,2]
[359213372,1745820654527,-400.0,0.00033698,2]
[359213373,1745820654538,-400.0,0.00033698,2]
[359213374,1745820654548,-400.0,0.00033698,2]
[359213375,1745820654558,-400.04982082,0.00033698,2]
[359213376,1745820654568,-400.0,0.00033698,2]
[359213377,1745820654579,-400.0,0.00033698,2]
[359213378,1745820654589,-400.0,0.00033698,2]
[359213379,1745820654599,-400.0,0.00033698,2]
[359213380,1745820654609,-400.0,0.00033698,2]
[359213381,1745820654620,-437.26,0.00033698,2]
[359213382,1745820654630,-400.0,0.00033698,2]
[359213383,1745820654640,-400.0,0.00033698,2]
[359213384,1745820654651,-400.0,0.00033698,2]
[359213385,1745820654660,-500.0,0.00033698,2]
[359213386,1745820654673,-400.0,0.00033698,2]
[359213387,1745820654683,-400.0,0.00033698,2]
[359213388,1745820654692,-168.69085526,0.00033698,2]
[359213389,1745820654702,-400.0,0.00033698,2]
[359213390,1745820654711,-400.0,0.00033698,2]
[359213391,1745820654721,-483.88,0.00033698,2]
[359213392,1745820654730,-400.0,0.00033698,2]
[359213393,1745820654739,-804.83,0.00033698,2]
[359213394,1745820654748,-400.0,0.00033698,2]
[359213395,1745820654757,-400.0,0.00033698,2]
[359213396,1745820654766,-713.88,0.00033698,2]
[359213397,1745820654775,-400.0,0.00033698,2]
[359213398,1745820654784,-400.0,0.00033698,2]
[359213399,1745820654794,-692.25,0.00033698,2]
[359213400,1745820654808,-400.0,0.00033698,2]
[359213401,1745820654820,-400.0,0.00033698,2]
[359213402,1745820654830,-500.0,0.00033698,2]
[359213403,1745820654841,-416.66,0.00033698,2]
[359213404,1745820654852,-400.0,0.00033698,2]
[359213405,1745820654862,-400.0,0.00033698,2]
[359213406,1745820654871,-400.0,0.00033698,2]
[359213407,1745820654881,-400.0,0.00033698,2]
[359213408,1745820654891,-400.0,0.00033698,2]
[359213409,1745820654901,-400.0,0.00033698,2]
[359213410,1745820654911,-400.0,0.00033698,2]
[359213411,1745820654921,-400.0,0.00033698,2]
[359213412,1745820654930,-1328.7,0.00033698,2]
[359213413,1745820654950,-628.62102042,0.00033902,2]
[359213414,1745820654964,-864.74779486,0.00033942,5]
[359213415,1745820654976,-400.0,0.00033972,2]
[359213416,1745820654986,-191.94129054,0.00033972,2]
[359213417,1745820654998,-400.0,0.00033972,2]
[359213418,1745820655010,-500.0,0.00033972,2]
[359213419,1745820655023,-466.67,0.00033972,2]
[359213420,1745820655035,-405.53839287,0.00033972,2]
[359213421,1745820655046,-410.11599397,0.00033972,2]
[359213422,1745820655056,-400.0,0.00033972,2]
[359213423,1745820655066,-407.26246948,0.00033972,2]
[359213424,1745820655075,-400.25096579,0.00033972,2]
[359213425,1745820655086,-393.96363073,0.00033972,2]
[359213426,1745820655096,-407.73254201,0.00033972,2]
[359213427,1745820655107,-400.0,0.00033972,2]
[359213428,1745820655118,-200.0,0.00033972,2]
[359213429,1745820655128,-400.0,0.00033972,2]
[359213430,1745820655139,-429.07214713,0.00033972,2]
[359213431,1745820655149,-400.0,0.00033972,2]
[359213432,1745820655161,-296.19108008,0.00033972,2]
[359213433,1745820655171,-348.54,0.00033972,2]
[359213434,1745820655181,-297.95,0.00033972,2]
[359213435,1745820655191,-400.0,0.00033972,2]
[359213436,1745820655202,-346.13,0.00033972,2]
[359213437,1745820655213,-400.0,0.00033972,2]
[359213438,1745820655223,-400.0,0.00033972,2]
[359213439,1745820655235,-300.0,0.00033972,2]
[359213440,1745820655244,-400.0,0.00033972,2]
[359213441,1745820655254,-507.45,0.00033972,2]
[359213442,1745820655264,-1654.21,0.00033972,2]
[359213443,1745820655273,-400.0,0.00033972,2]
[359213444,1745820655283,-402.62887646,0.00033972,2]
[359213445,1745820655293,-400.0,0.00033972,2]
[359213446,1745820655304,-400.0,0.00033972,2]
[359213447,1745820655314,-500.0,0.00033972,2]
[359213448,1745820655324,-500.0,0.00033972,2]
[359213449,1745820655333,-400.0,0.00033972,2]
[359213450,1745820655343,-400.0,0.00033972,2]
[359213451,1745820655353,-400.0,0.00033972,2]
[359213452,1745820655362,-437.26,0.00033972,2]
[359213453,1745820655371,-500.0,0.00033972,2]
[359213454,1745820655381,-400.0,0.00033972,2]
[359213455,1745820655390,-500.0,0.00033972,2]
[359213456,1745820655400,-400.0,0.00033972,2]
[359213457,1745820655410,-400.0,0.00033972,2]
[359213458,1745820655419,-361.57333575,0.00033972,2]
[359213459,1745820655429,-220.27066446,0.00033972,2]
[359213460,1745820655439,-400.0,0.00033972,2]
[359213461,1745820655449,-804.83,0.00033972,2]
[359213462,1745820655459,-400.0,0.00033972,2]
[359213463,1745820655470,-400.0,0.00033972,2]
[359213464,1745820655480,-713.88,0.00033972,2]
[359213465,1745820655488,-400.0,0.00033972,2]
[359213466,1745820655497,-692.25,0.00033972,2]
[359213467,1745820655506,-489.110702,0.00033972,2]
[359213468,1745820655515,-400.0,0.00033972,2]
[359213469,1745820655523,-416.66,0.00033972,2]
[359213470,1745820655532,-400.0,0.00033972,2]
[359213471,1745820655541,-400.0,0.00033972,2]
[359213472,1745820655551,-400.0,0.00033972,2]
[359213473,1745820655561,-400.0,0.00033972,2]
[359213474,1745820655570,-400.0,0.00033972,2]
[359213475,1745820655578,-400.0,0.00033972,2]
[359213476,1745820655587,-400.0,0.00033972,2]
[359213477,1745820655595,-400.0,0.00033972,2]
[359213478,1745820655604,-1328.7,0.00033972,2]
[359213479,1745820655613,-262.71423197,0.00034072,11]
[359213480,1745820655622,-156.0,0.000342,8]
[359213481,1745820655632,-400.0,0.00034246,2]
[359213482,1745820655640,-400.0,0.00034246,2]
[359213483,1745820655650,-466.67,0.00034246,2]
[359213484,1745820655660,-400.0,0.00034246,2]
[359213485,1745820655670,-376.8041091,0.00034246,2]
[359213486,1745820655680,-400.0,0.00034246,2]
[359213487,1745820655691,-400.0,0.00034246,2]
[359213488,1745820655701,-400.0,0.00034246,2]
[359213489,1745820655710,-500.0,0.00034246,2]
[359213490,1745820655720,-507.45,0.00034246,2]
[359213491,1745820655730,-1654.21,0.00034246,2]
[359213492,1745820655739,-400.0,0.00034246,2]
[359213493,1745820655750,-400.0,0.00034246,2]
[359213494,1745820655759,-400.0,0.00034246,2]
[359213495,1745820655770,-400.0,0.00034246,2]
[359213496,1745820655780,-367.95297275,0.00034246,2]
[359213497,1745820655790,-437.26,0.00034246,2]
[359213498,1745820655801,-400.0,0.00034246,2]
[359213499,1745820655812,-500.0,0.00034246,2]
[359213500,1745820655822,-400.0,0.00034246,2]
[359213501,1745820655832,-400.0,0.00034246,2]
[359213502,1745820655842,-400.0,0.00034246,2]
[359213503,1745820655852,-804.83,0.00034246,2]
[359213504,1745820655861,-400.0,0.00034246,2]
[359213505,1745820655870,-400.0,0.00034246,2]
[359213506,1745820655881,-713.88,0.00034246,2]
[359213507,1745820655891,-400.0,0.00034246,2]
[359213508,1745820655900,-692.25,0.00034246,2]
[359213509,1745820655911,-400.0,0.00034246,2]
[359213510,1745820655920,-416.66,0.00034246,2]
[359213511,1745820655930,-400.0,0.00034246,2]
[359213512,1745820655940,-400.0,0.00034246,2]
[359213513,1745820655950,-400.0,0.00034246,2]
[359213514,1745820655960,-422.88064537,0.00034246,2]
[359213515,1745820655969,-400.0,0.00034246,2]
[359213516,1745820655979,-400.0,0.00034246,2]
[359213517,1745820655989,-400.0,0.00034246,2]
[359213518,1745820655998,-400.0,0.00034246,2]
[359213519,1745820656011,-1328.7,0.00034246,2]
[359213520,1745820656022,-749.2352521,0.00034356,30]
[359213521,1745820656032,-508.24817822,0.00034479,4]
[359213522,1745820656043,-1000.0,0.00034479,5]
[359213523,1745820656052,-400.0,0.0003452,2]
[359213524,1745820656063,-400.0,0.0003452,2]
[359213525,1745820656073,-466.67,0.0003452,2]
[359213526,1745820656083,-400.0,0.0003452,2]
[359213527,1745820656094,-400.0,0.0003452,2]
[359213528,1745820656103,-400.0,0.0003452,2]
[359213529,1745820656113,-507.45,0.0003452,2]
[359213530,1745820656125,-1654.21,0.0003452,2]
[359213531,1745820656134,-400.0,0.0003452,2]
[359213532,1745820656143,-400.0,0.0003452,2]
[359213533,1745820656153,-400.0,0.0003452,2]
[359213534,1745820656163,-400.0,0.0003452,2]
[359213535,1745820656173,-437.26,0.0003452,2]
[359213536,1745820656183,-400.0,0.0003452,2]
[359213537,1745820656192,-500.0,0.0003452,2]
[359213538,1745820656202,-288.82943303,0.0003452,2]
[359213539,1745820656212,-300.0,0.0003452,2]
[359213540,1745820656222,-400.0,0.0003452,2]
[359213541,1745820656233,-804.83,0.0003452,2]
[359213542,1745820656243,-400.0,0.0003452,2]
[359213543,1745820656252,-400.0,0.0003452,2]
[359213544,1745820656262,-713.88,0.0003452,2]
[359213545,1745820656272,-400.0,0.0003452,2]
[359213546,1745820656282,-692.25,0.0003452,2]
[359213547,1745820656292,-400.0,0.0003452,2]
[359213548,1745820656301,-416.66,0.0003452,2]
[359213549,1745820656310,-400.0,0.0003452,2]
[359213550,1745820656319,-317.13311242,0.0003452,2]
[359213551,1745820656462,-400.0,0.0003452,2]
[359213552,1745820656472,-400.0,0.0003452,2]
[359213553,1745820656482,-400.0,0.0003452,2]
[359213554,1745820656492,-406.34385041,0.0003452,2]
[359213555,1745820656501,-214.19003437,0.0003452,2]
[359213556,1745820656510,-1328.7,0.0003452,2]
[359213557,1745820656519,-262.71423197,0.00034521,12]
[359213558,1745820656528,-400.0,0.00034794,2]
[359213559,1745820656538,-400.0,0.00034794,2]
[359213560,1745820656548,-466.67,0.00034794,2]
[359213561,1745820656558,-400.0,0.00034794,2]
[359213562,1745820656567,-400.0,0.00034794,2]
[359213563,1745820656577,-400.0,0.00034794,2]
[359213564,1745820656586,-507.45,0.00034794,2]
[359213565,1745820656595,-1654.21,0.00034794,2]
[359213566,1745820656604,-344.83257363,0.00034794,2]
[359213567,1745820656613,-400.0,0.00034794,2]
[359213568,1745820656623,-400.0,0.00034794,2]
[359213569,1745820656632,-244.92016729,0.00034794,2]
[359213570,1745820656642,-437.26,0.00034794,2]
[359213571,1745820656651,-400.0,0.00034794,2]
[359213572,1745820656661,-500.00000008,0.00034794,2]
[359213573,1745820656671,-400.0,0.00034794,2]
[359213574,1745820656680,-804.83,0.00034794,2]
[359213575,1745820656689,-400.0,0.00034794,2]
[359213576,1745820656698,-400.0,0.00034794,2]
[359213577,1745820656708,-713.88,0.00034794,2]
[359213578,1745820656717,-400.0,0.00034794,2]
[359213579,1745820656727,-692.25,0.00034794,2]
[359213580,1745820656736,-330.88772261,0.00034794,2]
[359213581,1745820656745,-416.66,0.00034794,2]
[359213582,1745820656755,-400.0,0.00034794,2]
[359213583,1745820656764,-400.0,0.00034794,2]
[359213584,1745820656774,-400.0,0.00034794,2]
[359213585,1745820656783,-400.0,0.00034794,2]
[359213586,1745820656793,-1328.7,0.00034794,2]
[359213587,1745820656803,-1000.0,0.000348,30]
[359213588,1745820656813,-10000.0,0.000349,90]
[359213589,1745820656822,-158.04,0.000349,31]
[359213590,1745820656831,-158.04,0.000349,31]
[359213591,1745820656841,-262.71423197,0.00034969,12]
[359213592,1745820656851,-1995.38,0.00035,30]
[359213593,1745820656862,-299.999999,0.00035,2]
[359213594,1745820656872,-204.87175,0.00035,5]
[359213595,1745820656884,-204.87175,0.00035,5]
[359213596,1745820656895,-2000.0,0.00035,5]
[359213597,1745820656904,-2000.0,0.00035,5]
[359213598,1745820656913,-2000.0,0.00035,5]
[359213599,1745820656922,-2000.0,0.00035,5]
[359213600,1745820656931,-400.0,0.00035068,2]
[359213601,1745820656940,-344.97371156,0.00035068,2]
[359213602,1745820656950,-466.67,0.00035068,2]